Cogmind - Beta 16 @@@ ROGUE MODE // 2025.11.18 @ 22:06:44 Player: Dadrick Result: Destroyed by Y-64 Sentinel with KE Penetrator Performance ------------- Evolutions (6) 3000 Regions Visited (19) 3800 Robots Destroyed (262) 1310 Value Destroyed (13048) 13048 Prototype IDs (24) 480 Alien Tech Used (0) 0 Bonus (9564) 9564 TOTAL SCORE: 31202 Bonus ------- High Alert Combat Kills 1424 Follower Combat Kills 4429 Entered Garrisons 1000 Used RIF Installer 3000 Friendly Fire -289 Cogmind --------- Core Integrity 0/1150 Matter 47/300 Energy 70/100 System Corruption 13% Temperature Cool (0) Movement Core (50) Location -4/Factory Parts ------- > --- POWER (2) -------- (None) > --- PROPULSION (4) --- Myomer Leg Myomer Leg Myomer Leg Myomer Leg > --- UTILITY (10) ----- (None) > --- WEAPON (3) ------- (None) > --- INVENTORY (5) ---- Compact Battery (200) Hardened Heavy Armor Plating Relay Coupler [Duelist] (35) Phase Gun Peak State ------------ > --- POWER ------------ Reinforced Fission Core > --- PROPULSION ------- Carbon-fiber Leg Carbon-fiber Leg Flexi-carbon Leg Shield Leg > --- UTILITY ---------- High-capacity Storage Unit Damper Plating Relay Coupler [NC] Relay Coupler [Swarmer] Relay Coupler [Grunt] Relay Coupler [Sentry] Relay Coupler [Hunter] > --- WEAPON ----------- Heavy Linear Accelerator Improved Remote Datajack > --- INVENTORY -------- Light Angular Momentum Engine Myomer Leg Power Amplifier Advanced Heat Sink Compact Battery Precision Energy Filter Transmission Jammer Hardened Heavy Armor Plating Layered Medium Armor Plating Experimental System Shield Relay Coupler [Brawler] Relay Coupler [Duelist] Relay Coupler [Duelist] Relay Coupler [Sentry] Relay Coupler [Specialist] Heavy Gauss Cannon Heavy Gauss Cannon Gamma Bomb Array Force Lance [Rating: 97] Favorites ----------- Power Heavy Ion Engine Engine Heavy Ion Engine Power Core Reinforced Fission Core Reactor Light Particle Reactor Propulsion Aluminum Leg Leg Aluminum Leg Utility High-capacity Storage Unit Device Improved Coolant Injector Storage High-capacity Storage Unit Processor Enhanced Optical Array Hackware Relay Coupler [Grunt] Protection Improved Light Armor Plating Weapon Heavy Assault Rifle Energy Gun Gatling Laser Energy Cannon Phase Cannon Ballistic Gun Heavy Assault Rifle Ballistic Cannon Heavy Linear Accelerator Launcher Gamma Bomb Array Special Weapon Remote Datajack Impact Weapon Power Maul Slashing Weapon Great Axe Piercing Weapon Force Lance Build | -11 -10 -9 -9 -9 -9 -7 -7 -7 -7 -6 -6 -6 -6 -6 -5 -5 -4 -4 -4 ------- Run | Yrd Mat Mat Sto Gar Rec Fac Gar Fac Gar Fac Gar Fac Ext Cet Fac Gar Fac Was Fac Slots Evolved 12 | . . 2 . . . 4 . . . 2 . . . . 2 . 2 . . Power 1 | . . . . . . . . . . . . . . . . . 1 . . Propulsion 2 | . . 1 . . . 1 . . . . . . . . . . . . . Utility 8 | . . . . . . 3 . . . 2 . . . . 2 . 1 . . Weapon 1 | . . 1 . . . . . . . . . . . . . . . . . Parts Attached 264 | 8 10 22 5 9 1 28 21 . 26 8 23 12 15 6 11 39 10 4 6 Power 18 | 1 1 1 . . . 2 2 . 2 1 1 . 2 1 . 4 . . . Engine 9 | 1 1 1 . . . 2 1 . 1 1 . . . . . 1 . . . Core 7 | . . . . . . . 1 . 1 . . . 1 1 . 3 . . . Reactor 2 | . . . . . . . . . . . 1 . 1 . . . . . . Propulsion 71 | 2 3 7 1 6 . 6 4 . 6 1 8 2 4 4 1 8 4 . 4 Treads . | . . . . . . . . . . . . . . . . . . . . Leg 71 | 2 3 7 1 6 . 6 4 . 6 1 8 2 4 4 1 8 4 . 4 Wheel . | . . . . . . . . . . . . . . . . . . . . Hover . | . . . . . . . . . . . . . . . . . . . . Flight . | . . . . . . . . . . . . . . . . . . . . Utility 107 | 2 1 4 1 . 1 13 11 . 10 4 13 7 6 1 6 18 4 4 1 Device 18 | 1 . 1 . . . 3 2 . 1 1 1 . . . 4 3 1 . . Storage 4 | 1 1 1 . . . . . . . . . . . . . 1 . . . Processor 3 | . . . . . . . . . . 1 . . . . 1 1 . . . Hackware 55 | . . . . . . 6 7 . 6 2 10 6 5 . . 8 1 3 1 Protection 27 | . . 2 1 . 1 4 2 . 3 . 2 1 1 1 1 5 2 1 . Artifact . | . . . . . . . . . . . . . . . . . . . . Weapon 68 | 3 5 10 3 3 . 7 4 . 8 2 1 3 3 . 4 9 2 . 1 Energy Gun 5 | 1 1 . . . . . 2 . . . . . . . 1 . . . . Energy Cannon 9 | . . . . . . . . . 2 1 1 3 . . 1 . . . 1 Ballistic Gun 35 | 2 3 8 3 1 . 4 . . 6 . . . 3 . 1 4 . . . Ballistic Cannon 1 | . . . . . . . . . . . . . . . . 1 . . . Launcher 6 | . . 2 . . . 2 . . . . . . . . . 2 . . . Special Weapon 6 | . . . . . . 1 1 . . 1 . . . . . 2 1 . . Impact Weapon 3 | . 1 . . 1 . . 1 . . . . . . . . . . . . Slashing Weapon 2 | . . . . 1 . . . . . . . . . . 1 . . . . Piercing Weapon 1 | . . . . . . . . . . . . . . . . . 1 . . Special Melee Weapon . | . . . . . . . . . . . . . . . . . . . . Unidentified Prototypes 6 | . . 1 1 . . 1 . . . . . . . . 1 1 . . 1 Parts Lost 79 | . 4 1 1 1 . 3 8 . 7 1 1 1 21 1 1 20 2 4 2 Power 7 | . 1 . . . . 1 1 . 1 . . . 3 . . . . . . Propulsion 23 | . . . . . . 1 2 . 4 . . . 6 . . 9 . 1 . Utility 27 | . 1 1 1 . . 1 2 . 1 1 1 1 6 1 1 5 1 2 1 Weapon 22 | . 2 . . 1 . . 3 . 1 . . . 6 . . 6 1 1 1 Highest Loss Streak 10 | . 2 1 1 1 . 1 4 . 4 1 1 1 10 1 1 10 1 3 2 To Critical Strikes 2 | . . . . . . . . . . . . . 1 . . 1 . . . Average Backups 18 | 1 13 18 19 19 20 19 19 20 19 19 19 19 13 10 15 18 18 16 3 Power 1 | . . 1 2 1 1 1 . 1 . 1 1 1 . 1 2 1 1 . . Propulsion 1 | . 3 4 3 3 3 1 . 1 . 1 1 1 1 1 1 . . . . Utility 9 | . 4 4 6 9 12 9 11 13 13 13 13 12 9 4 5 8 11 10 3 Weapon 4 | 1 5 6 7 5 4 5 4 4 4 2 3 3 2 2 4 6 5 3 . Tool/Special . | . . . . . . . . . . . . . . . . . . . . Unused Backups 71 | . 6 5 4 7 . 6 4 . 7 . 4 . . . 1 14 4 7 2 Power 4 | . . 1 . 1 . . . . . . . . . . . 1 . 1 . Propulsion 9 | . 3 . . . . 3 . . . . 2 . . . . . . 1 . Utility 27 | . 1 1 2 4 . . 4 . 6 . 2 . . . . 4 . 2 1 Weapon 30 | . 2 3 2 1 . 3 . . 1 . . . . . 1 9 4 3 1 Tool/Special 1 | . . . . 1 . . . . . . . . . . . . . . . Average Slot Usage (%) 94 | . 87 99 99 99 100 97 97 100 92 96 99 99 98 62 94 84 81 63 10 Engine 5 | . 12 10 11 11 11 7 6 . 5 6 1 . . . . 1 . . . Core 1 | . . . . . . . . 7 1 . . . 1 5 5 3 5 4 . Reactor 1 | . . . . . . . . . . . 4 6 4 . . . . . . Leg 27 | . 28 32 33 33 33 29 28 30 26 26 25 26 25 23 23 18 21 15 9 Device 3 | . 3 2 . . . 4 2 7 2 11 2 . . 2 16 9 4 2 . Storage 7 | . 14 11 11 11 11 7 7 7 7 6 6 6 6 6 5 4 5 4 . Processor 1 | . . . . . . . . . . 1 6 2 . . 4 5 5 2 . Hackware 14 | . . . . . . 18 20 15 14 16 21 34 37 13 11 17 26 21 1 Protection 6 | . . 8 10 11 11 5 6 7 10 6 7 2 1 9 8 4 5 4 . Energy Gun 1 | . 2 . . . . . 9 7 . . . . . . 3 . . . . Energy Cannon 3 | . . . . . . . . . 3 12 12 13 9 . . . . . . Ballistic Gun 14 | . 23 32 32 30 33 20 5 . 10 . . . 2 . 3 3 . . . Special Weapon 2 | . . . . . . 1 2 7 4 . 6 5 5 . . 1 1 2 . Impact Weapon 1 | . 1 . . 1 . . 3 7 2 5 . . . . . 1 . . . Peak Build Rating 97 | 7 8 17 22 25 25 55 56 46 50 57 84 84 80 38 81 83 95 97 30 Average Rating 46 | 5 7 14 17 22 25 44 47 46 40 52 75 80 71 35 73 74 88 73 16 On Entrance 40 | . 7 7 17 18 22 25 52 46 46 45 56 84 76 18 35 81 83 90 2 Avg Prop Armor Cover (%) 39 | . . . . . . . . . . . . . . . . 28 . . 43 Naked Turns 99 | . . . . . . . . . . . . . . . . . . 30 69 Heaviest Build 133 | 11 27 60 62 63 65 71 68 59 75 77 98 80 82 58 93 117 115 133 . Greatest Support 100 | 20 20 30 30 33 33 72 72 61 61 55 94 94 82 60 61 76 75 75 100 Greatest Overweight (x) 2 | . 1 1 2 2 1 1 1 . 2 1 1 . 1 . 1 2 1 2 . Average Overweight (x) . | . . . 1 1 1 . . . . 1 . . . . . 1 1 . . Largest Inventory Capacity 20 | 8 15 20 20 20 20 20 20 20 20 20 20 20 20 20 20 20 20 20 5 Average Capacity 19 | 7 14 18 20 20 20 20 20 20 20 20 20 20 20 20 20 19 20 17 5 Most Carried 20 | 3 15 20 20 20 20 20 20 20 20 20 20 20 19 15 20 20 20 20 5 Average Carried 18 | 1 13 18 19 19 20 19 19 20 19 19 19 19 13 9 16 18 19 16 4 Final Capacity 20 | 8 15 20 20 20 20 20 20 20 20 20 20 20 20 20 20 20 20 5 5 Final Carried 20 | 3 15 20 20 20 20 20 20 20 20 20 20 19 16 9 20 20 19 5 5 Class Distribution -------------------- 16% | Botlord-Tank 14% | Scavenger-Tank 11% | Bothacker-Tank 9% | Mutant 8% | Scavenger-Mutant 8% | Botlord-Mutant 7% | Bothacker-Mutant 7% | Botlord-Gunner 6% | Tank 3% | Bothacker-Gunner 3% | Commander-Tank Dominant Class ---------------- Mutant | -10/Materials Scavenger-Tank | -9/Materials Scavenger-Tank | -9/Storage Tank | -9/Garrison Tank | -9/Recycling Bothacker-Tank | -7/Factory Bothacker-Mutant | -7/Garrison Bothacker-Mutant | -7/Factory Bothacker-Tank | -7/Garrison Botlord-Mutant | -6/Factory Botlord-Tank | -6/Garrison Botlord-Gunner | -6/Factory Botlord-Gunner | -6/Extension Scavenger-Mutant | -6/Cetus Scavenger-Mutant | -5/Factory Botlord-Mutant | -5/Garrison Scavenger-Mutant | -4/Factory Mutant | -4/Waste Mutant | -4/Factory Resources | -11 -10 -9 -9 -9 -9 -7 -7 -7 -7 -6 -6 -6 -6 -6 -5 -5 -4 -4 -4 ----------- Run | Yrd Mat Mat Sto Gar Rec Fac Gar Fac Gar Fac Gar Fac Ext Cet Fac Gar Fac Was Fac Matter Collected 10543 | 323 531 1400 253 748 125 1145 1203 . 835 120 480 169 788 . 381 1422 590 . 30 Remotely 381 | . . . . . . 73 308 . . . . . . . . . . . . Salvage Created 10045 | 111 603 2044 421 776 143 1099 401 . 414 254 330 626 546 . 320 1355 403 134 65 Parts 515 | 9 36 111 42 37 3 60 29 . 21 . 13 28 15 . 18 58 26 . 9 Haulers Intercepted 14 | . 2 5 3 . . 2 . . . . . 1 . . . . 1 . . Recyclers Shooed 10 | . 1 2 . . . 5 . . . . . . . . . . 2 . . Parts Field Recycled . | . . . . . . . . . . . . . . . . . . . . Retrieved Matter . | . . . . . . . . . . . . . . . . . . . . Parts Self-Destructed . | . . . . . . . . . . . . . . . . . . . . Prevented . | . . . . . . . . . . . . . . . . . . . . Parts Restored . | . . . . . . . . . . . . . . . . . . . . Kills | -11 -10 -9 -9 -9 -9 -7 -7 -7 -7 -6 -6 -6 -6 -6 -5 -5 -4 -4 -4 ------- Run | Yrd Mat Mat Sto Gar Rec Fac Gar Fac Gar Fac Gar Fac Ext Cet Fac Gar Fac Was Fac Combat Hostiles Destroyed 181 | . 9 33 4 18 . 19 14 . 14 . 6 10 7 . 4 26 9 1 7 Melee 2 | . . . . . . . . . . . . . . . . . 2 . . Guns 102 | . 9 28 4 18 . 9 10 . 8 . . . . . 4 12 . . . Cannons 24 | . . . . . . . . . 1 . 5 3 3 . . 6 5 1 . AOE 47 | . . 5 . . . 10 4 . 5 . . 6 4 . . 4 2 . 7 Classes Destroyed 20 | 2 4 6 . 1 . 1 1 . . . . 2 . . . 2 . 1 . Worker 14 | . 1 6 1 . . 2 . . . 1 . 1 . . 2 . . . . Builder 7 | . . 2 1 . . 3 . . . . . . . . 1 . . . . Tunneler 4 | 2 1 1 . . . . . . . . . . . . . . . . . Hauler 14 | . 2 5 3 . . 2 . . . . . 1 . . . . 1 . . Recycler 16 | 1 . 6 . . 2 4 . . . 2 . . 1 . . . . . . Carrier 1 | . . . . . . . . . . . . 1 . . . . . . . Operator 3 | . . 1 2 . . . . . . . . . . . . . . . . Watcher 14 | . 3 5 1 1 . 2 . . . . . . 1 . 1 . . . . Swarmer 58 | . . 11 . 4 . 8 4 . 9 . . 2 1 . . 12 . . 7 Cutter 6 | . . . . . . . 5 . . . 1 . . . . . . . . Grunt 56 | . 9 11 2 11 . 4 1 . . . 3 6 3 . . 6 . . . Brawler 3 | . . 1 . . . . . . . . . . 2 . . . . . . Duelist 4 | . . 1 . . . 1 . . 1 . 1 . . . . . . . . Sentry 29 | . . 9 2 3 . 2 4 . 1 . 1 1 . . 1 5 . . . Demolisher 1 | . . . . . . 1 . . . . . . . . . . . . . Specialist 1 | . . . . . . . . . . . . . . . . 1 . . . Hunter 5 | . . . . . . . . . . . . 1 . . . 1 3 . . Programmer 21 | . . . . 2 . 4 . . 4 . 1 1 . . 3 . 6 . . Heavy 1 | . . . . . . . . . . . . . . . . 1 . . . Compactor 1 | . . . . . . . . . . . . . . . . . . 1 . Thug 2 | . . . . . . . . . . . . . 1 . . 1 . . . Savage 1 | . . . . . . . . . . . . . 1 . . . . . . Best Kill Streak 8 | 1 6 8 7 3 1 7 3 . 7 2 1 8 3 . 6 8 3 1 7 Combat Bots Only 8 | . 2 5 2 3 . 6 3 . 7 . 1 6 2 . 3 8 3 1 7 Max Kills in Single Turn 8 | 1 1 3 2 2 1 3 2 . 3 1 1 8 2 . 2 2 2 1 7 Gunslinging 1 | . . 1 . 1 . . . . . . . . . . . . . . . Exploded 7 | . . 3 . . . 2 2 . 3 . . 6 2 . . 1 2 . 7 Melee 1 | . . . . . . . . . . . . . . . . . 1 . . Uniques/NPCs Destroyed . | . . . . . . . . . . . . . . . . . . . . Combat | -11 -10 -9 -9 -9 -9 -7 -7 -7 -7 -6 -6 -6 -6 -6 -5 -5 -4 -4 -4 -------- Run | Yrd Mat Mat Sto Gar Rec Fac Gar Fac Gar Fac Gar Fac Ext Cet Fac Gar Fac Was Fac Hostile Shots Fired 1734 | . 69 124 27 104 2 151 172 . 146 27 86 23 239 21 40 263 133 16 91 Missed 573 | . 20 44 9 28 2 65 69 . 44 11 27 11 69 12 12 75 46 . 29 Hits 1161 | . 49 80 18 76 . 86 103 . 102 16 59 12 170 9 28 188 87 16 62 Melee 25 | . . 1 . . . . 5 . . . 3 . . . . . . 16 . Projectile 1136 | . 49 79 18 76 . 86 98 . 102 16 56 12 170 9 28 188 87 . 62 AOE 8 | . . . . . . 5 2 . . . 1 . . . . . . . . Critical Strikes 47 | . . 1 1 3 . . 3 . 4 . 2 1 11 . 2 7 4 8 . Part Disruptions 4 | . . . . 2 . 1 . . 1 . . . . . . . . . . Damage Taken 19033 | . 637 930 260 917 . 1110 1533 . 1273 104 901 422 2589 250 587 3978 1597 710 1235 Core 2890 | . 118 86 27 34 . 112 158 . 186 11 43 . 330 28 83 522 79 174 899 Absorbed by Shields 226 | . . . . 96 . . . . 7 . 32 . 55 . . 36 . . . Regen/Repaired (Parts) 751 | . . 236 65 . . . . . . . . 128 . . . . 322 . . Core Remaining (%) 56 | 100 52 . . . 63 . . . 34 . . . . 51 . 39 . . . Volleys Fired 873 | 23 52 119 22 56 5 89 62 . 71 9 75 44 93 . 24 78 34 16 1 Largest 3 | 2 2 3 3 3 3 3 3 . 3 2 2 2 2 . 2 3 1 1 1 Hottest 283 | 40 60 69 69 69 61 66 175 . 170 170 170 170 198 . 113 283 70 70 98 Shots Fired 1720 | 46 101 346 66 156 16 206 114 . 109 13 114 63 127 . 44 148 34 16 1 Gun 1233 | 46 101 341 66 156 16 179 94 . 68 . . . 30 . 40 96 . . . Cannon 286 | . . . . . . . . . 20 8 94 45 46 . 4 27 27 14 1 Launcher 40 | . . 5 . . . 12 3 . 5 . . . 6 . . 9 . . . Special 161 | . . . . . . 15 17 . 16 5 20 18 45 . . 16 7 2 . Kinetic 1203 | 46 84 341 66 156 16 179 54 . 67 . . . 30 . 20 103 27 14 . Thermal 316 | . 17 . . . . . 40 . 21 8 94 45 46 . 24 20 . . 1 Explosive 31 | . . 5 . . . 12 3 . 5 . . . 6 . . . . . . Electromagnetic 9 | . . . . . . . . . . . . . . . . 9 . . . Robot Hit Streak 22 | 13 15 17 7 11 4 13 10 . 8 8 6 9 22 . 16 13 9 16 . Robot Miss Streak 7 | 3 3 5 3 5 2 4 7 . 4 1 6 6 5 . 6 7 3 1 . Penetration Max 1 | . . . . . . . . . . . . . 1 . 1 1 . . . Secondary Targets 20 | . 3 7 . 4 . 1 1 . 2 . . . . . . 2 . . . Max Gunslinging Chain 1 | . 1 1 . 1 . 1 1 . 1 . . . . . . 1 . . . Shots Hit Robots 990 | 28 72 189 37 80 7 122 72 . 62 10 36 34 81 . 32 86 27 15 . Core Hits 429 | 6 29 80 16 26 3 61 34 . 27 . 10 13 30 . 20 56 12 1 5 Critical Kills 5 | . . . . . . . 2 . . . . 1 . . 1 1 . . . Critical Parts Destroyed 10 | . 2 2 . 1 . . . . 2 2 . . . . . 1 . . . Critical Strikes 17 | . 2 2 . 1 . . 2 . 2 2 . 1 . . 1 2 1 1 . Meltdown 2 | . . . . . . . . . . . . 1 . . . 1 . . . Destroy 9 | . 1 1 . 1 . . 2 . 2 . . . . . 1 1 . . . Blast 1 | . . . . . . . . . . . . . . . . . . 1 . Smash 4 | . 1 1 . . . . . . . 2 . . . . . . . . . Impale 1 | . . . . . . . . . . . . . . . . . 1 . . Melee Attacks 166 | . 2 22 . 30 . 3 41 . 9 4 2 . . . 3 39 10 1 . Impact 115 | . 2 22 . 17 . . 41 . 9 4 2 . . . . 18 . . . Slashing 40 | . . . . 13 . 3 . . . . . . . . 3 21 . . . Piercing 11 | . . . . . . . . . . . . . . . . . 10 1 . Sneak Attacks 7 | . . 1 . 1 . . . . . 3 . . . . . . 1 1 . Combat Hostiles 1 | . . . . . . . . . . . . . . . . . . 1 . Follow-up Attacks . | . . . . . . . . . . . . . . . . . . . . Damage Inflicted 26357 | 227 915 3270 614 1520 182 3437 1560 . 1577 407 956 1826 2422 . 895 2575 1955 1034 985 Guns 12565 | 227 881 2823 614 1402 182 1986 1156 . 808 . . . 373 . 854 1259 . . . Cannons 5969 | . . . . . . . . . 228 91 956 731 1083 . . 586 1286 1008 . Explosions 6660 | . . 375 . . . 1451 240 . 541 . . 1095 928 . . 730 407 . 893 Melee 1022 | . 34 72 . 118 . . 164 . . 316 . . . . 30 . 262 26 . Ramming 141 | . . . . . . . . . . . . . 38 . 11 . . . 92 Kinetic 13861 | 227 716 2823 614 1402 182 1986 592 . 808 . . . 373 . 427 1417 1286 1008 . Thermal 7068 | . 165 . . . . . 564 . 228 91 956 1826 1083 . 427 428 407 . 893 Explosive 3535 | . . 375 . . . 1451 240 . 541 . . . 928 . . . . . . Electromagnetic 730 | . . . . . . . . . . . . . . . . 730 . . . Impact 704 | . 34 72 . 118 . . 164 . . 316 . . . . . . . . . Slashing 30 | . . . . . . . . . . . . . . . 30 . . . . Piercing 288 | . . . . . . . . . . . . . . . . . 262 26 . Highest Corruption 13 | . . . . 3 4 1 4 4 6 . . 3 3 3 8 9 6 12 13 Average Corruption 4 | . . . . 2 3 1 3 4 4 . . 2 3 3 7 9 4 11 12 Corruption Purged . | . . . . . . . . . . . . . . . . . . . . Corruption Blocked . | . . . . . . . . . . . . . . . . . . . . Effects 340 | . . . . 28 19 6 35 1 49 . . 10 26 3 20 93 22 10 18 Message Errors 103 | . . . . 7 8 1 12 . 14 . . 4 5 1 7 32 6 2 4 Matter Fused 76 | . . . . 7 6 2 8 1 9 . . 4 7 1 4 16 7 1 3 Heat Flow Errors 33 | . . . . 5 . . 3 . 8 . . . 4 1 3 5 2 1 1 Energy Discharges 31 | . . . . 2 1 . 3 . 5 . . . . . 2 11 2 2 3 Parts Rejected 7 | . . . . . . . 2 . . . . . 3 . 1 . 1 . . Parts Fused 2 | . . . . . 1 . . . . . . . . . . 1 . . . Data Loss (minor) 47 | . . . . 3 1 1 4 . 8 . . 1 5 . 3 17 1 2 1 Data Loss (major) 14 | . . . . 1 . 1 2 . 1 . . 1 1 . . 4 2 1 . Misfires 12 | . . . . 2 1 1 . . 4 . . . 1 . . 3 . . . Alerts 4 | . . . . . 1 . . . . . . . . . . 2 1 . . Misdirections 7 | . . . . . . . . . . . . . . . . . . 1 6 Weapon Failures 4 | . . . . 1 . . 1 . . . . . . . . 2 . . . Overload Shots . | . . . . . . . . . . . . . . . . . . . . Overflow Damage 1524 | . 34 50 . 60 . 71 . . 39 246 32 110 76 . . . 404 . 402 Projectiles 292 | . . . . 2 . . . . 24 . 32 . 60 . . . 174 . . Explosions 728 | . . . . . . 71 . . 15 . . 110 16 . . . 114 . 402 Melee 504 | . 34 50 . 58 . . . . . 246 . . . . . . 116 . . Knockbacks 20 | . . . . 2 . . 2 . . 3 . . . . . 1 11 . 1 Impact 6 | . . . . 1 . . 2 . . 2 . . . . . . . . 1 Kinetic 8 | . . . . . . . . . . . . . . . . 1 7 . . Secondary 6 | . . . . 1 . . . . . 1 . . . . . . 4 . . Self-Inflicted Damage 545 | . . . . . . . 55 . 38 . . . . . . 74 183 . 195 Shots 16 | . . . . . . . 2 . 1 . . . . . . 8 3 . 2 Rammed 19 | . . . . . . . . . . . . . 1 . . . . . 18 Targets Rammed 28 | . . . . . . . . . . . . . 7 . 1 . . . 20 Kicked 9 | . . . . . . . . . . . . . 6 . 1 . . . 2 Crushed . | . . . . . . . . . . . . . . . . . . . . Highest Temperature 484 | . 108 134 113 381 18 36 266 . 258 102 304 218 484 180 166 300 248 350 196 Average Temperature 70 | . 38 32 43 79 5 11 68 . 73 37 77 76 122 159 48 83 70 181 89 Received Heat Transfer 2900 | . 351 228 102 299 . 150 216 . 273 18 153 93 495 27 18 447 . . 30 Effects 11 | . . . . 4 . . . . 1 . . . 2 . . 1 1 2 . Shutdowns 1 | . . . . . . . . . . . . . 1 . . . . . . Energy Bleed 7 | . . . . 2 . . . . 1 . . . 1 . . 1 . 2 . Interference 2 | . . . . 1 . . . . . . . . . . . . 1 . . Matter Decay 1 | . . . . 1 . . . . . . . . . . . . . . . Siege Activations . | . . . . . . . . . . . . . . . . . . . . Martial Activations . | . . . . . . . . . . . . . . . . . . . . Shielding Activations . | . . . . . . . . . . . . . . . . . . . . Robots Disrupted . | . . . . . . . . . . . . . . . . . . . . Combat Hostiles . | . . . . . . . . . . . . . . . . . . . . Robots Corrupted 8 | . . 1 . 2 . . . . . 2 . . . . . 3 . . . Combat Hostiles 3 | . . . . . . . . . . . . . . . . 3 . . . Parts Fried 11 | . 1 . . 1 . . . . . 6 . . . . . 3 . . . Impact Corruptions 12 | . 1 3 . 2 . . . . . 6 . . . . . . . . . Robots Melted 4 | . . . . . . . . . . . 2 1 . . . 1 . . . Combat Hostiles 3 | . . . . . . . . . . . 1 1 . . . 1 . . . Parts Melted 21 | . 2 . . . . 3 4 . 1 . 2 4 . . 3 1 . . 1 Heat Transferred 7663 | . 375 . . . . . 1156 . 203 111 1053 1451 1081 . 875 658 250 . 450 Parts Sabotaged . | . . . . . . . . . . . . . . . . . . . . Parts Stolen . | . . . . . . . . . . . . . . . . . . . . Parts Stripped . | . . . . . . . . . . . . . . . . . . . . Power Chain Reactions 1 | . . . . . . . . . . . . . . . . 1 . . . Alert | -11 -10 -9 -9 -9 -9 -7 -7 -7 -7 -6 -6 -6 -6 -6 -5 -5 -4 -4 -4 ------- Run | Yrd Mat Mat Sto Gar Rec Fac Gar Fac Gar Fac Gar Fac Ext Cet Fac Gar Fac Was Fac Maximum Alert Level 5 | . . 2 1 5 3 2 4 3 4 2 4 5 3 1 . 4 3 . 1 Low Security (%) 27 | 100 100 55 86 7 . 43 . . . . . . . 40 100 6 . 100 38 Level 1 16 | . . 30 13 13 14 27 5 . . 10 53 . . 60 . 36 . . 61 Level 2 28 | . . 14 . 17 73 28 33 . 8 89 14 55 88 . . 19 92 . . Level 3 14 | . . . . 25 11 . 22 100 82 . 17 2 11 . . 19 7 . . Level 4 10 | . . . . 26 . . 38 . 8 . 14 18 . . . 18 . . . Level 5 2 | . . . . 9 . . . . . . . 23 . . . . . . . High Security . | . . . . . . . . . . . . . . . . . . . . Max Security . | . . . . . . . . . . . . . . . . . . . . Peak Influence 1827 | 5 112 484 239 1753 806 606 1513 793 1163 610 1316 1827 893 221 100 1543 809 176 308 Initial 893 | . . . 196 . 788 606 352 793 534 610 263 690 893 221 100 . 809 176 . Average 527 | . 19 204 75 896 471 307 897 782 845 481 592 1044 564 202 24 642 557 103 166 Influence Increases 14742 | 15 300 1103 331 1903 300 1318 1401 . 879 51 1343 1903 905 . 152 2003 490 2 343 Destroy 0b10 Robot/C 5200 | . 180 660 120 720 60 440 380 . 300 . 300 600 460 . 80 580 180 . 140 Destroy 0b10 Robot/NC 490 | 15 35 130 40 5 10 65 . . 5 20 . 120 20 . 20 . 5 . . Destroy Leader 868 | . 50 190 58 30 . 136 30 . 30 2 10 136 62 . 32 30 52 . 20 Allied During Kill 1010 | . . . 28 117 9 19 37 . 20 9 143 396 206 . . 26 . . . Successful Hack 349 | . 17 59 21 14 10 102 28 . 14 . 14 45 20 . . . 5 . . Select Force Hacks 240 | . . . 30 . 210 . . . . . . . . . . . . . . Disable Machine 705 | . 15 . . . . 15 60 . . 15 . 345 15 . . 60 120 . 60 Anti-Garrison Action 3600 | . . . . 850 . . 600 . 400 . 650 . . . . 1100 . . . Destroy Structure 1275 | . 3 49 4 62 1 46 161 . 95 5 136 261 107 . 20 117 128 2 78 Advance Influence 450 | . . . . . . 450 . . . . . . . . . . . . . Partial Spotted 15 | . . . . 15 . . . . . . . . . . . . . . . Lose Combat Pursuer 540 | . . 15 30 90 . 45 105 . 15 . 90 . 15 . . 90 . . 45 Influence Decreases 14514 | 15 300 638 796 150 1681 1186 392 750 479 837 404 1396 2331 216 333 460 1529 506 115 Entered New Map 6093 | . . . 269 . 965 216 152 720 229 553 114 626 930 176 81 . 734 328 . Time Decay 4738 | 15 275 529 483 . 416 630 . 30 . 254 . 630 571 30 242 . 440 98 95 Search Patrol Dispatched 200 | . . . . . . 200 . . . . . . . . . . . . . Lost Part 775 | . 25 10 10 10 . 30 80 . 70 10 10 10 210 10 10 200 20 40 20 Lost Ally 2006 | . . . 6 140 . 110 160 . 180 20 280 130 620 . . 260 60 40 . Purge Threat 702 | . . 99 28 . 300 . . . . . . . . . . . 275 . . Squads Dispatched 45 | . . 3 2 . . 10 . . . 1 . 14 10 . 2 . 3 . . Investigation 6 | . . . 1 . . . . . . . . 1 3 . . . 1 . . Extermination 13 | . . . . . . 5 . . . . . 5 . . 2 . 1 . . Reinforcement 14 | . . 2 1 . . 2 . . . . . 5 4 . . . . . . Assault 9 | . . 1 . . . . . . . 1 . 3 3 . . . 1 . . Garrison 3 | . . . . . . 3 . . . . . . . . . . . . . Intercept . | . . . . . . . . . . . . . . . . . . . . Searches Triggered 2 | . . . . . . 2 . . . . . . . . . . . . . Unchained Authorized 1 | . . . . . . . . . . . . . 1 . . . . . . Construction Impeded 4 | . . . . . . 1 . . . . . 1 2 . . . . . . Haulers Reinforced 1 | . . . . . . 1 . . . . . . . . . . . . . Active Scanning Responses . | . . . . . . . . . . . . . . . . . . . . Cargo Convoy Interrupts 1 | . . . . . . . . . . . . 1 . . . . . . . Alert ID Control Effect 72 | . . . . . . 5 10 . 6 1 19 10 17 . . 2 2 . . Stealth | -11 -10 -9 -9 -9 -9 -7 -7 -7 -7 -6 -6 -6 -6 -6 -5 -5 -4 -4 -4 --------- Run | Yrd Mat Mat Sto Gar Rec Fac Gar Fac Gar Fac Gar Fac Ext Cet Fac Gar Fac Was Fac Distress Signals 16 | . 1 3 2 . . 1 . . . . . 1 3 1 1 . . . 3 Communications Jammed 1 | . . . . . . 1 . . . . . . . . . . . . . Distress Signals 1 | . . . . . . 1 . . . . . . . . . . . . . Times Spotted 500 | . 15 55 20 39 2 44 41 . 30 6 42 30 66 5 10 52 19 5 19 Peak Tracking Total 10 | . 3 6 4 6 1 7 8 . 8 3 6 6 8 5 4 10 4 3 8 Tactical Retreats 25 | . . 1 2 6 . 3 3 . 1 . 3 . 1 . . 2 . . 3 Traps | -11 -10 -9 -9 -9 -9 -7 -7 -7 -7 -6 -6 -6 -6 -6 -5 -5 -4 -4 -4 ------- Run | Yrd Mat Mat Sto Gar Rec Fac Gar Fac Gar Fac Gar Fac Ext Cet Fac Gar Fac Was Fac Traps Triggered 47 | . . 1 . 10 . 2 9 . 7 1 3 1 3 . . 7 1 . 2 Indirectly . | . . . . . . . . . . . . . . . . . . . . Trap Hack Attempts . | . . . . . . . . . . . . . . . . . . . . Triggered . | . . . . . . . . . . . . . . . . . . . . Disarmed . | . . . . . . . . . . . . . . . . . . . . Reprogrammed . | . . . . . . . . . . . . . . . . . . . . Reused . | . . . . . . . . . . . . . . . . . . . . Traps Extracted . | . . . . . . . . . . . . . . . . . . . . Installed . | . . . . . . . . . . . . . . . . . . . . Triggered . | . . . . . . . . . . . . . . . . . . . . Machines | -11 -10 -9 -9 -9 -9 -7 -7 -7 -7 -6 -6 -6 -6 -6 -5 -5 -4 -4 -4 ---------- Run | Yrd Mat Mat Sto Gar Rec Fac Gar Fac Gar Fac Gar Fac Ext Cet Fac Gar Fac Was Fac Machines Disabled 74 | . 1 . . 7 . 1 9 . 4 1 6 23 1 . . 9 8 . 4 Max in Single Turn 17 | . 1 . . 1 . 1 1 . 1 1 1 17 . . . 1 4 . 4 Garrison Relay 23 | . . . . 5 . . 4 . 4 . 5 . . . . 5 . . . Machines Repaired . | . . . . . . . . . . . . . . . . . . . . Machines Dismantled . | . . . . . . . . . . . . . . . . . . . . Machines Sabotaged . | . . . . . . . . . . . . . . . . . . . . Overloaded Fab Kills . | . . . . . . . . . . . . . . . . . . . . Hacking | -11 -10 -9 -9 -9 -9 -7 -7 -7 -7 -6 -6 -6 -6 -6 -5 -5 -4 -4 -4 --------- Run | Yrd Mat Mat Sto Gar Rec Fac Gar Fac Gar Fac Gar Fac Ext Cet Fac Gar Fac Was Fac Machines Accessed 96 | . 8 13 9 2 13 13 3 1 2 2 2 8 8 . 5 3 3 . 1 Terminals 63 | . 7 8 6 2 6 8 3 . 2 . 2 5 8 . . 3 2 . 1 Fabricators 1 | . . . . . . 1 . . . . . . . . . . . . . Repair Stations 6 | . . 2 1 . . . . . . . . 1 . . 1 . 1 . . Recycling Units 15 | . 1 1 1 . 7 2 . . . . . 1 . . 2 . . . . Scanalyzers 5 | . . 2 . . . 1 . . . . . 1 . . 1 . . . . Garrison Access 6 | . . . 1 . . 1 . 1 . 2 . . . . 1 . . . . Total Hacks 223 | . 19 42 26 2 32 23 6 1 4 3 3 19 17 . 11 8 6 . 1 Successful 131 | . 11 32 14 2 22 13 2 1 1 3 1 11 8 . 6 . 3 . 1 Failed 90 | . 8 9 12 . 10 10 4 . 3 . 2 7 9 . 5 8 3 . . Catastrophic 18 | . . 1 . . 3 3 . . 1 . . 2 3 . . 4 1 . . Database Lockouts 2 | . . 1 . . . . . . . . . 1 . . . . . . . Manual 84 | . 14 16 16 . 13 9 . . . . . 8 5 . . . 3 . . Terminals 158 | . 17 29 21 2 16 16 6 . 4 . 3 13 17 . . 8 5 . 1 Fabricators 1 | . . . . . . 1 . . . . . . . . . . . . . Repair Stations 16 | . . 8 2 . . . . . . . . 2 . . 3 . 1 . . Recycling Units 31 | . 2 1 2 . 16 3 . . . . . 1 . . 6 . . . . Scanalyzers 10 | . . 4 . . . 2 . . . . . 3 . . 1 . . . . Garrison Access 7 | . . . 1 . . 1 . 1 . 3 . . . . 1 . . . . Terminal Hacks 52 | . 2 13 7 2 5 6 2 . 1 . 1 4 6 . . . 2 . 1 Record 2 | . . 2 . . . . . . . . . . . . . . . . . Part Schematic 2 | . . . . . 1 . . . . . . . . . . . 1 . . Robot Analysis 1 | . . 1 . . . . . . . . . . . . . . . . . Prototype ID Bank 13 | . 1 3 4 . 2 2 . . . . . 1 . . . . . . . Open Door 7 | . . . . 1 . . . . . . . . 6 . . . . . . Branch Access Points 1 | . . . . . . . . . . . . 1 . . . . . . . Emergency Access Points 3 | . . 1 . 1 . . 1 . . . . . . . . . . . . Terminal Index 1 | . . . . . . 1 . . . . . . . . . . . . . Unreport Threat 6 | . . 2 2 . 2 . . . . . . . . . . . . . . Locate Traps 3 | . . . 1 . . 1 . . . . . 1 . . . . . . . Hauler Manifests 2 | . 1 1 . . . . . . . . . . . . . . . . . Registered Components 1 | . . 1 . . . . . . . . . . . . . . . . . Registered Prototypes 1 | . . 1 . . . . . . . . . . . . . . . . . Zone Layout 6 | . . 1 . . . 2 . . . . . 1 . . . . 1 . 1 Garrison Registry 2 | . . . . . . . . . 1 . 1 . . . . . . . . Security Stations 1 | . . . . . . . 1 . . . . . . . . . . . . Fabricator Hacks . | . . . . . . . . . . . . . . . . . . . . Repair Station Hacks 12 | . . 7 2 . . . . . . . . 2 . . 1 . . . . Scan Component 7 | . . 4 1 . . . . . . . . 1 . . 1 . . . . Repair 5 | . . 3 1 . . . . . . . . 1 . . . . . . . Recycling Unit Hacks 13 | . 1 1 . . 7 . . . . . . 1 . . 3 . . . . Report Inventory 10 | . . 1 . . 6 . . . . . . 1 . . 2 . . . . Retrieve Components 3 | . 1 . . . 1 . . . . . . . . . 1 . . . . Scanalyzer 6 | . . 3 . . . 1 . . . . . 1 . . 1 . . . . Retrieve Study 6 | . . 3 . . . 1 . . . . . 1 . . 1 . . . . Garrison Access Hacks 7 | . . . 1 . . 1 . 1 . 3 . . . . 1 . . . . Unlock Access 6 | . . . 1 . . 1 . 1 . 2 . . . . 1 . . . . Coupler Status 1 | . . . . . . . . . . 1 . . . . . . . . . Unauthorized Hacks 41 | . 8 8 4 . 10 5 . . . . . 3 2 . . . 1 . . Terminals 32 | . 8 8 3 . 3 5 . . . . . 3 2 . . . . . . Assimilate 1 | . . . . . . 1 . . . . . . . . . . . . . Botnet 18 | . 3 2 3 . 3 3 . . . . . 3 1 . . . . . . Disrupt 1 | . . . . . . . . . . . . . 1 . . . . . . Operators 2 | . . 1 . . . 1 . . . . . . . . . . . . . Skim 10 | . 5 5 . . . . . . . . . . . . . . . . . Fabricators . | . . . . . . . . . . . . . . . . . . . . Repair Stations 1 | . . . . . . . . . . . . . . . . . 1 . . Patch 1 | . . . . . . . . . . . . . . . . . 1 . . Recycling Units 8 | . . . 1 . 7 . . . . . . . . . . . . . . Tunnel 8 | . . . 1 . 7 . . . . . . . . . . . . . . Scanalyzers . | . . . . . . . . . . . . . . . . . . . . Garrison Access . | . . . . . . . . . . . . . . . . . . . . Data Cores Recovered 3 | . . . 1 . . . . . . . . 1 1 . . . . . . Used . | . . . . . . . . . . . . . . . . . . . . Hacking Detections 75 | . 8 11 7 2 8 11 3 1 2 2 2 7 4 . 1 3 2 . 1 Full Trace Events 7 | . . . . . 2 . . . . . . . 2 . . 3 . . . Feedback Events 1 | . . . . . 1 . . . . . . . . . . . . . . Corruption 1 | . . . . . 1 . . . . . . . . . . . . . . Feedback Blocked . | . . . . . . . . . . . . . . . . . . . . Robot Schematics Acquired . | . . . . . . . . . . . . . . . . . . . . Robots Built . | . . . . . . . . . . . . . . . . . . . . Authchips . | . . . . . . . . . . . . . . . . . . . . Time . | . . . . . . . . . . . . . . . . . . . . Total Robot Build Rating . | . . . . . . . . . . . . . . . . . . . . Part Schematics Acquired 2 | . . . . . 1 . . . . . . . . . . . 1 . . Parts Built . | . . . . . . . . . . . . . . . . . . . . Authchips . | . . . . . . . . . . . . . . . . . . . . Time . | . . . . . . . . . . . . . . . . . . . . Total Part Build Rating . | . . . . . . . . . . . . . . . . . . . . Part Studies Acquired 6 | . . 3 . . . 1 . . . . . 1 . . 1 . . . . Parts Repaired 5 | . . 3 1 . . . . . . . . 1 . . . . . . . Time 192 | . . 116 32 . . . . . . . . 44 . . . . . . . Parts Recycled . | . . . . . . . . . . . . . . . . . . . . Recycled Matter . | . . . . . . . . . . . . . . . . . . . . Retrieved Matter . | . . . . . . . . . . . . . . . . . . . . Retrieved Components 6 | . 3 . . . 1 . . . . . . . . . 2 . . . . Parts Scanalyzed . | . . . . . . . . . . . . . . . . . . . . Part Schematics Acquired . | . . . . . . . . . . . . . . . . . . . . Parts Damaged . | . . . . . . . . . . . . . . . . . . . . Bothacking | -11 -10 -9 -9 -9 -9 -7 -7 -7 -7 -6 -6 -6 -6 -6 -5 -5 -4 -4 -4 ------------ Run | Yrd Mat Mat Sto Gar Rec Fac Gar Fac Gar Fac Gar Fac Ext Cet Fac Gar Fac Was Fac Used RIF Installer 6 | . . . . 2 . . 1 . 1 . 1 . . . . 1 . . . Coupler Efficiency 1 | . . . . . . . . . . . . . . . . 1 . . . Zone Cloak 1 | . . . . . . . 1 . . . . . . . . . . . . Robot Detection 1 | . . . . . . . . . . . 1 . . . . . . . . Alert ID Control 1 | . . . . 1 . . . . . . . . . . . . . . . Autoassimilate 1 | . . . . . . . . . 1 . . . . . . . . . . Robots Hacked 96 | . . . . . . 9 12 . 12 3 12 11 16 . . 16 3 2 . Non-combat 4 | . . . . . . . . . . . . 3 . . . . 1 . . Combat 92 | . . . . . . 9 12 . 12 3 12 8 16 . . 16 2 2 . Autoassimilated 13 | . . . . . . . . . 1 . 3 . 4 . . 5 . . . Robot Hacks Applied 85 | . . . . . . 9 12 . 11 3 9 12 12 . . 11 4 2 . parse_system 3 | . . . . . . 1 . . . . . 1 . . . 1 . . . purge_threat 2 | . . . . . . . . . . . . . . . . . 2 . . ignore_targets 2 | . . . . . . . . . . . . . . . . . . 2 . find_garrison 1 | . . . . . . . . . . . . 1 . . . . . . . scatter_targeting 1 | . . . . . . . 1 . . . . . . . . . . . . disable_weapons 2 | . . . . . . . 1 . . . 1 . . . . . . . . overwrite_iff 18 | . . . . . . 1 1 . 2 . . 3 6 . . 5 . . . formatsys_low 3 | . . . . . . . . . . . . 3 . . . . . . . formatsys_high 53 | . . . . . . 7 9 . 9 3 8 4 6 . . 5 2 . . Relay Couplers Released 102 | . . . . 21 . . 18 . 16 . 23 4 . . . 20 . . . Machine Destruction 98 | . . . . 21 . . 18 . 16 . 23 . . . . 20 . . . Programmers 4 | . . . . . . . . . . . . 4 . . . . . . . Attached 52 | . . . . . . 5 7 . 6 2 10 5 5 . . 8 1 3 . Fabnet Peak Effective % . | . . . . . . . . . . . . . . . . . . . . Robots Rewired 16 | . . . . . . . . . . 1 5 . 10 . . . . . . Allies Hacked 3 | . . . . . . . . . 2 . . 1 . . . . . . . Hacks Repelled . | . . . . . . . . . . . . . . . . . . . . Allies | -11 -10 -9 -9 -9 -9 -7 -7 -7 -7 -6 -6 -6 -6 -6 -5 -5 -4 -4 -4 -------- Run | Yrd Mat Mat Sto Gar Rec Fac Gar Fac Gar Fac Gar Fac Ext Cet Fac Gar Fac Was Fac Total Allies 127 | . . . 10 2 . 9 10 . 12 4 18 10 33 . . 17 2 . . Largest Group 10 | . . . 10 9 2 3 4 2 3 6 9 9 8 . . 3 3 2 . Highest-Rated Group 646 | . . . 88 80 56 76 64 64 64 151 646 571 435 . . 121 109 109 . Highest-Rated Ally 159 | . . . 16 31 31 32 32 32 32 41 148 148 159 . . 46 56 56 . Total Orders 40 | . . . . . . . 2 . 15 1 14 8 . . . . . . . STAY 25 | . . . . . . . 1 . 10 1 9 4 . . . . . . . FOLLOW 13 | . . . . . . . 1 . 5 . 5 2 . . . . . . . AID 2 | . . . . . . . . . . . . 2 . . . . . . . Ally Attacks 975 | . . . 18 92 5 45 92 . 41 21 131 200 217 . . 69 19 25 . Total Damage 22266 | . . . 140 890 140 1134 1474 . 896 345 3640 4709 5396 . . 1866 473 1163 . Kills 184 | . . . 2 18 3 9 17 . 7 2 30 51 37 . . 5 2 1 . Allies Corrupted 3 | . . . . 2 . . . . 1 . . . . . . . . . . Allies Melted 3 | . . . . . . . . . . . 2 . . . . 1 . . . Intel | -11 -10 -9 -9 -9 -9 -7 -7 -7 -7 -6 -6 -6 -6 -6 -5 -5 -4 -4 -4 ------- Run | Yrd Mat Mat Sto Gar Rec Fac Gar Fac Gar Fac Gar Fac Ext Cet Fac Gar Fac Was Fac Active Infowar (turns) 7246 | 25 485 . . . . 1165 . . . 399 22 . . . 1205 2753 1083 109 . Optics 5038 | . . . . . . . . . . . . . . . 1093 2753 1083 109 . Sensors 177 | . . . . . . . . . . 175 2 . . . . . . . . Traps 1578 | . . . . . . . . . . . . . . . 1205 373 . . . Seismic 1562 | 25 485 . . . . 1052 . . . . . . . . . . . . . Jamming 832 | . . . . . . 411 . . . 399 22 . . . . . . . . Robot Analysis Total 1 | . . 1 . . . . . . . . . . . . . . . . . Derelict Logs Recovered . | . . . . . . . . . . . . . . . . . . . . Drone Launches . | . . . . . . . . . . . . . . . . . . . . Drone Recoveries . | . . . . . . . . . . . . . . . . . . . . Exploration | -11 -10 -9 -9 -9 -9 -7 -7 -7 -7 -6 -6 -6 -6 -6 -5 -5 -4 -4 -4 ------------- Run | Yrd Mat Mat Sto Gar Rec Fac Gar Fac Gar Fac Gar Fac Ext Cet Fac Gar Fac Was Fac Turns Passed 29409 | 186 1841 2836 1895 2652 1016 2189 2279 60 2083 556 2261 2195 1732 75 1224 2753 1083 205 288 Spaces Moved 14701 | 96 645 1172 678 1208 553 1340 1244 46 980 277 1243 1457 899 53 583 1165 481 120 461 Core 571 | 5 . . . . . . . . . . . . . . . 47 . 65 454 Treads . | . . . . . . . . . . . . . . . . . . . . Legs 14130 | 91 645 1172 678 1208 553 1340 1244 46 980 277 1243 1457 899 53 583 1118 481 55 7 Wheels . | . . . . . . . . . . . . . . . . . . . . Hover . | . . . . . . . . . . . . . . . . . . . . Flight . | . . . . . . . . . . . . . . . . . . . . Fastest Speed 50 | 50 120 120 175 180 180 120 116 116 116 178 112 108 108 120 120 100 190 50 50 Average Speed 160 | 116 183 183 241 187 180 136 144 116 176 180 137 111 152 120 186 193 192 117 51 Slowest Speed 266 | 120 190 190 245 245 180 190 190 116 252 182 190 112 190 120 190 260 195 266 120 Overloaded Moves . | . . . . . . . . . . . . . . . . . . . . Propulsion Burnouts . | . . . . . . . . . . . . . . . . . . . . Robots Hopped . | . . . . . . . . . . . . . . . . . . . . Potential Cave-ins . | . . . . . . . . . . . . . . . . . . . . Cave-ins Triggered . | . . . . . . . . . . . . . . . . . . . . Exploration Rate (%) 56 | 6 95 87 92 94 91 31 94 1 74 9 88 47 92 22 14 93 9 75 18 Regions Visited 19 Branch Regions 4 Pre-discovered Areas 13 | . 2 3 1 . 7 . . . . . . . . . . . . . . Known Exits Taken 9 | . 1 1 1 . . 1 . 1 . 1 . 1 . 1 1 . . . . Unknown Exits Taken 3 | 1 . . . . 1 . . . . . . . 1 . . . . . . Scrap Searched . | . . . . . . . . . . . . . . . . . . . . Spaces Dug 78 | . 1 13 . 7 . 3 19 . . 3 1 5 . . 6 18 2 . . Terrain Destroyed 474 | . 1 49 . 7 . 53 40 . 46 5 1 35 90 . 12 28 67 1 39 Melee 57 | . 1 13 . 7 . 3 10 . . 1 1 . . . 2 18 1 . . Projectile 55 | . . . . . . . . . 2 4 . 12 9 . 10 9 8 1 . AOE 362 | . . 36 . . . 50 30 . 44 . . 23 81 . . 1 58 . 39 Terrain Rammed . | . . . . . . . . . . . . . . . . . . . . Walls Destroyed . | . . . . . . . . . . . . . . . . . . . . Machines Disabled . | . . . . . . . . . . . . . . . . . . . . Actions | -11 -10 -9 -9 -9 -9 -7 -7 -7 -7 -6 -6 -6 -6 -6 -5 -5 -4 -4 -4 --------- Run | Yrd Mat Mat Sto Gar Rec Fac Gar Fac Gar Fac Gar Fac Ext Cet Fac Gar Fac Was Fac Total 18765 | 129 1205 1554 891 1437 563 1560 1549 52 1239 312 1692 1972 1142 65 663 1500 573 158 509 Wait 2032 | . 459 167 170 63 3 55 104 7 62 . 283 448 94 4 19 49 15 12 18 Move 14680 | 95 644 1171 677 1206 552 1339 1242 45 978 276 1241 1456 899 52 583 1163 481 119 461 Hop . | . . . . . . . . . . . . . . . . . . . . Pick Up 208 | 3 23 19 7 11 . 15 22 . 23 2 14 2 9 . 13 38 6 . 1 Fast Attach 131 | 7 2 7 2 . 1 7 9 . 8 3 14 7 11 . 11 27 7 3 5 Attach 79 | . 2 4 1 1 . 6 13 . 9 3 3 2 10 8 . 14 2 . 1 Detach 12 | . 1 1 . . . 1 . . . 1 . . 1 1 . 3 1 2 . Swap 201 | 1 6 22 3 15 1 26 30 . 20 6 18 4 8 . 3 29 6 3 . Drop 214 | . 14 22 9 16 1 19 16 . 24 3 27 9 1 . 6 35 10 2 . Fire 873 | 23 52 119 22 56 5 89 62 . 71 9 75 44 93 . 24 78 34 16 1 Melee 166 | . 2 22 . 30 . 3 41 . 9 4 2 . . . 3 39 10 1 . Ram 20 | . . . . . . . . . . . . . . . . . . . 20 Kick 9 | . . . . . . . . . . . . . 6 . 1 . . . 2 Crush . | . . . . . . . . . . . . . . . . . . . . Escape Stasis 139 | . . . . 39 . . 10 . 35 5 15 . 10 . . 25 . . . Rewire 1 | . . . . . . . . . . . . . . . . . 1 . . Trap . | . . . . . . . . . . . . . . . . . . . . Miscellaneous . | . . . . . . . . . . . . . . . . . . . . Route ------- -11/Scrapyard -10/Materials (discovered 5 exits: *Mat x3 / [*Min] / Sub) -9/Materials (discovered 7 exits: *Mat x3 / *Min x2 / *Sto x2) -9/Storage (discovered 3 exits: *Mat / *Rec / Gar) -9/Garrison (discovered 3 exits: *Rec x3) -9/Recycling -7/Factory (discovered 2 exits: *Fac / Gar) -7/Garrison (discovered 3 exits: *Fac x3) -7/Factory -7/Garrison (discovered 3 exits: *Fac x3) -6/Factory (discovered 3 exits: *Low / Gar / Gar) -6/Garrison (discovered 3 exits: *Fac x3) -6/Factory (discovered 6 exits: *Fac x2 / Low x2 / *Ext x2) -6/Extension (discovered 2 exits: *Fac / [*Cet]) -6/Cetus -5/Factory (discovered 2 exits: [*Upp] / Gar) -5/Garrison (discovered 3 exits: *Fac x3) -4/Factory -4/Waste -4/Factory History --------- Turn | Location | Event 3 | -11/Scrapyard | Discovered new exit (range 15) 187 | -11/Scrapyard | Entered Materials 303 | -10/Materials | Build established: Mutant 363 | -10/Materials | Discovered new exit (range 4) 630 | -10/Materials | Discovered new exit (range 14) 806 | -10/Materials | Discovered new exit (range 15) 1044 | -10/Materials | Discovered new exit (range 9) 1654 | -10/Materials | Loaded intel: 7 trap records 1720 | -10/Materials | Learned location of 2 exits from Mines 1819 | -10/Materials | Learned location of Mines (-9) 1854 | -10/Materials | Learned 2 Storage zone layouts 1898 | -10/Materials | Identified exit to Subcaves 1898 | -10/Materials | Learned location of 1 exit from Materials 1952 | -10/Materials | Learned location of 3 exits from Materials 2014 | -10/Materials | Identified exit to Materials 2028 | -10/Materials | Entered another Materials area 2028 | -9/Materials | Evolved 2 slots: Propulsion x1, Weapon x1 2029 | -9/Materials | Identified exit to Mines 2029 | -9/Materials | Identified exit to Materials 2029 | -9/Materials | Identified exit to Storage 2841 | -9/Materials | Discovered exit to Materials (range 15) 2954 | -9/Materials | Build established: Scavenger-Tank 3393 | -9/Materials | Learned location of Storage (-9) 3474 | -9/Materials | Repaired Aluminum Leg 3533 | -9/Materials | Learned location of 1 exit from Storage 3776 | -9/Materials | Learned Storage trap positions 3896 | -9/Materials | Learned Storage trap positions 4054 | -9/Materials | Repaired Aluminum Leg 4184 | -9/Materials | Repaired Broken Hvy. Ion Engine 4662 | -9/Materials | Central database locked down 4828 | -9/Materials | First assault squad dispatched 4864 | -9/Materials | Entered Storage 4867 | -9/Storage | Loaded intel: 14 trap records 5017 | -9/Storage | Met 01-MTF 5495 | -9/Storage | Repaired Hvy. Assault Rifle+ 5723 | -9/Storage | Identified exit to Garrison 5940 | -9/Storage | Assisted by bots powering up and referring to "LRC-V3" 6237 | -9/Storage | Build established: Commander-Tank 6272 | -9/Storage | Discovered new exit (range 8) 6759 | -9/Storage | Entered Garrison 6759 | -9/Garrison | Accompanied by 11 allies (01-MTF) 6762 | -9/Garrison | 01-MTF left 6811 | -9/Garrison | Triggered checkpoint 6847 | -9/Garrison | Triggered checkpoint 6869 | -9/Garrison | Garrison Relay disabled 7183 | -9/Garrison | Triggered checkpoint 7237 | -9/Garrison | Discovered new exit (range 10) 7303 | -9/Garrison | Triggered checkpoint 7345 | -9/Garrison | Garrison Relay disabled 7385 | -9/Garrison | Garrison Relay disabled 7432 | -9/Garrison | Build established: Scavenger-Tank 7549 | -9/Garrison | Triggered checkpoint 7591 | -9/Garrison | Triggered checkpoint 7681 | -9/Garrison | Discovered new exit (range 13) 7749 | -9/Garrison | Triggered checkpoint 7882 | -9/Garrison | Garrison Relay disabled 8071 | -9/Garrison | Discovered new exit (range 12) 8139 | -9/Garrison | Triggered checkpoint 8244 | -9/Garrison | Installed Relay Interface Framework 8284 | -9/Garrison | Garrison Relay disabled 8317 | -9/Garrison | Triggered checkpoint 8503 | -9/Garrison | Triggered checkpoint 8659 | -9/Garrison | Rescued a captive Derelict 8661 | -9/Garrison | Rescued a captive Derelict 8803 | -9/Garrison | Expanded RIF knowledge: Alert ID Control 8959 | -9/Garrison | Build established: Tank 9411 | -9/Garrison | Entered Recycling 9411 | -9/Recycling | Accompanied by 2 allies 9558 | -9/Recycling | Scanned before Scraplab entrance 10400 | -9/Recycling | Discovered new exit (range 15) 10427 | -9/Recycling | Entered Factory 10427 | -7/Factory | Accompanied by 2 allies 10427 | -7/Factory | Evolved 4 slots: Propulsion x1, Utility x3 10528 | -7/Factory | Discovered new exit (range 12) 10754 | -7/Factory | Build established: Bothacker-Tank 10827 | -7/Factory | Search patrols dispatched 11227 | -7/Factory | Search patrols dispatched 11544 | -7/Factory | Build established: Bothacker-Gunner 12329 | -7/Factory | Garrison activated, responded to threat 12383 | -7/Factory | Identified exit to Garrison 12616 | -7/Factory | Entered Garrison 12616 | -7/Garrison | Accompanied by 2 allies 12666 | -7/Garrison | Triggered checkpoint 12710 | -7/Garrison | Garrison Relay disabled 12816 | -7/Garrison | Triggered checkpoint 12837 | -7/Garrison | Triggered checkpoint 12872 | -7/Garrison | Lost 3 allies 12887 | -7/Garrison | Lost 4 parts (1p2n1u) 12990 | -7/Garrison | Triggered checkpoint 13043 | -7/Garrison | Garrison Relay disabled 13126 | -7/Garrison | Discovered new exit (range 15) 13380 | -7/Garrison | Triggered checkpoint 13444 | -7/Garrison | Discovered new exit (range 12) 13615 | -7/Garrison | Triggered checkpoint 13634 | -7/Garrison | Garrison Relay disabled 13676 | -7/Garrison | Expanded RIF knowledge: Zone Cloak 13770 | -7/Garrison | Triggered checkpoint 13892 | -7/Garrison | Triggered checkpoint 13959 | -7/Garrison | Garrison Relay disabled 14013 | -7/Garrison | Discovered new exit (range 3) 14258 | -7/Garrison | Build established: Bothacker-Mutant 14831 | -7/Garrison | Learned Factory security intel 14895 | -7/Garrison | Entered Factory 14895 | -7/Factory | Accompanied by 2 allies 14900 | -7/Factory | Identified exit to Garrison 14955 | -7/Factory | Entered Garrison 14955 | -7/Garrison | Accompanied by 2 allies 14974 | -7/Garrison | Discovered new exit (range 71) 14974 | -7/Garrison | Discovered new exit (range 41) 14974 | -7/Garrison | Discovered new exit (range 50) 14989 | -7/Garrison | Triggered checkpoint 14997 | -7/Garrison | Garrison Relay disabled 15106 | -7/Garrison | P-60 Hacker assimilated allied Guardian 4e 15129 | -7/Garrison | Core integrity fell below 50% 15162 | -7/Garrison | Destroyed 7 combat bots 15166 | -7/Garrison | Lost 4 parts (1p3n) 15295 | -7/Garrison | Build established: Bothacker-Tank 15421 | -7/Garrison | Triggered checkpoint 15432 | -7/Garrison | Triggered checkpoint 15476 | -7/Garrison | Lost 4 allies 15490 | -7/Garrison | Lost 3 parts (1n1u1w) 15661 | -7/Garrison | Triggered checkpoint 15720 | -7/Garrison | Garrison Relay disabled 15924 | -7/Garrison | Expanded RIF knowledge: Autoassimilate 16080 | -7/Garrison | Triggered checkpoint 16171 | -7/Garrison | Triggered checkpoint 16248 | -7/Garrison | Garrison Relay disabled 16373 | -7/Garrison | Build established: Botlord-Tank 16762 | -7/Garrison | Build established: Botlord-Mutant 16854 | -7/Garrison | Garrison Relay disabled 16869 | -7/Garrison | Triggered checkpoint 17038 | -7/Garrison | Entered Factory 17038 | -6/Factory | Accompanied by 3 allies 17038 | -6/Factory | Evolved 2 slots: Utility x2 17063 | -6/Factory | Discovered new exit (range 12) 17097 | -6/Factory | Identified exit to Garrison 17388 | -6/Factory | First assault squad dispatched 17592 | -6/Factory | Identified exit to Garrison 17594 | -6/Factory | Entered Garrison 17594 | -6/Garrison | Accompanied by 6 allies 17616 | -6/Garrison | Triggered checkpoint 17672 | -6/Garrison | Garrison Relay disabled 17824 | -6/Garrison | Triggered checkpoint 17844 | -6/Garrison | Triggered checkpoint 17879 | -6/Garrison | Build established: Botlord-Tank 17908 | -6/Garrison | Lost 6 allies 17965 | -6/Garrison | Discovered new exit (range 68) 17965 | -6/Garrison | Discovered new exit (range 34) 17965 | -6/Garrison | Discovered new exit (range 66) 18212 | -6/Garrison | Triggered checkpoint 18317 | -6/Garrison | Triggered checkpoint 18340 | -6/Garrison | Expanded RIF knowledge: Robot Detection 18381 | -6/Garrison | Garrison Relay disabled 18658 | -6/Garrison | Found embedded Infiltrators 18778 | -6/Garrison | Triggered checkpoint 18794 | -6/Garrison | Garrison Relay disabled 18966 | -6/Garrison | Garrison Relay disabled 19119 | -6/Garrison | Spotted B-86 Titan 19119 | -6/Garrison | Spotted B-90 Cyclops 19120 | -6/Garrison | Autoassimilated Cyclops 5a with RIF 19133 | -6/Garrison | Allies destroyed B-86 Titan 19150 | -6/Garrison | Rewired B-86 Titan 19152 | -6/Garrison | Rewired B-90 Cyclops 19220 | -6/Garrison | Triggered checkpoint 19444 | -6/Garrison | Triggered checkpoint 19520 | -6/Garrison | Garrison Relay disabled 19742 | -6/Garrison | Identified exit to Factory 19855 | -6/Garrison | Entered Factory 19855 | -6/Factory | Accompanied by 7 allies 19957 | -6/Factory | Discovered new exit (range 15) 19975 | -6/Factory | Identified exit to Factory 20205 | -6/Factory | First assault squad dispatched 20340 | -6/Factory | Repaired Remote Datajack 20749 | -6/Factory | Lost 3 allies 20910 | -6/Factory | Cargo convoy interrupted 21040 | -6/Factory | Build established: Botlord-Gunner 21493 | -6/Factory | Discovered exit to Factory (range 13) 21683 | -6/Factory | Identified exit to Lower Caves 21683 | -6/Factory | Identified exit to Extension 21810 | -6/Factory | Central database locked down 21889 | -6/Factory | Spotted B-75 Beast 22050 | -6/Factory | Entered Extension 22050 | -6/Extension | Accompanied by 3 allies 22090 | -6/Extension | Unchained authorized (6S-H0T) 22137 | -6/Extension | Spotted B-75 Beast 22183 | -6/Extension | Allies destroyed B-75 Beast 22219 | -6/Extension | Spotted B-75 Beast 22271 | -6/Extension | Allies destroyed B-75 Beast 22285 | -6/Extension | Lost 6 allies 22328 | -6/Extension | Lost 4 parts (1p2n1u) 22400 | -6/Extension | First assault squad dispatched 22542 | -6/Extension | Rescued A7 22590 | -6/Extension | Build established: Botlord-Tank 22590 | -6/Extension | Rescued a captive Derelict 22638 | -6/Extension | Rescued a captive Derelict 22894 | -6/Extension | Rescued a captive Derelict 22986 | -6/Extension | Lost 4 allies 22993 | -6/Extension | Build established: Botlord-Gunner 23145 | -6/Extension | Discovered exit to Factory (range 16) 23145 | -6/Extension | Discovered new exit (range 16) 23225 | -6/Extension | Extracted ID and sensor layout for unrecognized location from A7's data core 23317 | -6/Extension | Lost 4 allies 23443 | -6/Extension | Lost 6 allies 23529 | -6/Extension | Rescued a captive Derelict 23532 | -6/Extension | Rescued a captive Derelict 23533 | -6/Extension | Rescued a captive Derelict 23764 | -6/Extension | Disrupted transfer network 23782 | -6/Extension | Entered Cetus 23804 | -6/Cetus | Lost 4 allies 23811 | -6/Cetus | Spotted Cetus Guard 23811 | -6/Cetus | Spotted Cetus Guard 23812 | -6/Cetus | Lost 10 parts (1p3n4u2w) 23813 | -6/Cetus | Spotted Cetus Guard 23814 | -6/Cetus | Spotted Cetus Guard 23839 | -6/Cetus | Discovered exit to Factory (range 15) 23857 | -6/Cetus | Entered Factory 23857 | -5/Factory | Evolved 2 slots: Utility x2 24067 | -5/Factory | Build established: Scavenger-Mutant 24771 | -5/Factory | Discovered new exit (range 18) 25081 | -5/Factory | Identified exit to Garrison 25081 | -5/Factory | Entered Garrison 25111 | -5/Garrison | Triggered checkpoint 25141 | -5/Garrison | Garrison Relay disabled 25201 | -5/Garrison | Lost 5 parts (3n1u1w) 25207 | -5/Garrison | Destroyed 8 combat bots 25248 | -5/Garrison | Garrison Relay disabled 25305 | -5/Garrison | Heavy support dispatched to Factory 25375 | -5/Garrison | Triggered checkpoint 25498 | -5/Garrison | Lost 4 allies 25543 | -5/Garrison | Found Gamma Bomb Array 25761 | -5/Garrison | Rescued a captive Derelict 25764 | -5/Garrison | Rescued a captive Derelict 25903 | -5/Garrison | Heavy support dispatched to Factory 25926 | -5/Garrison | Spotted B-75 Beast 25944 | -5/Garrison | Allies destroyed B-75 Beast 25977 | -5/Garrison | Lost 3 allies 26033 | -5/Garrison | Core integrity fell below 50% 26037 | -5/Garrison | Lost 3 allies 26062 | -5/Garrison | Lost 10 parts (3n2u5w) 26108 | -5/Garrison | Found Gamma Bomb Array 26303 | -5/Garrison | Triggered checkpoint 26394 | -5/Garrison | Discovered new exit (range 17) 26459 | -5/Garrison | Build established: Bothacker-Mutant 26477 | -5/Garrison | H-XX Assembler disabled 26661 | -5/Garrison | Triggered checkpoint 26707 | -5/Garrison | Garrison Relay disabled 26979 | -5/Garrison | Discovered new exit (range 14) 27016 | -5/Garrison | Build established: Botlord-Tank 27135 | -5/Garrison | Triggered checkpoint 27171 | -5/Garrison | Garrison Relay disabled 27318 | -5/Garrison | Build established: Botlord-Mutant 27425 | -5/Garrison | Triggered checkpoint 27527 | -5/Garrison | Lost 3 allies 27564 | -5/Garrison | Garrison Relay disabled 27653 | -5/Garrison | Discovered new exit (range 19) 27665 | -5/Garrison | Triggered checkpoint 27701 | -5/Garrison | Expanded RIF knowledge: Coupler Efficiency 27834 | -5/Garrison | Entered Factory 27834 | -4/Factory | Accompanied by 3 allies 27834 | -4/Factory | Evolved 2 slots: Power x1, Utility x1 27967 | -4/Factory | Lost 3 allies 28263 | -4/Factory | Build established: Scavenger-Mutant 28584 | -4/Factory | First assault squad dispatched 28850 | -4/Factory | Found Prototype Hackware 28910 | -4/Factory | Build established: Botlord-Tank 28917 | -4/Factory | Sucked down chute 28917 | -4/Factory | Entered Waste 28932 | -4/Waste | EMP discharged 28932 | -4/Waste | System corruption reached 10% 28973 | -4/Waste | Spotted C-40 Crusher 28982 | -4/Waste | 2 allies followed down the chute 29014 | -4/Waste | Spotted C-40 Crusher 29014 | -4/Waste | Spotted C-40 Crusher 29014 | -4/Waste | Spotted C-40 Crusher 29017 | -4/Waste | Allies destroyed C-40 Crusher 29026 | -4/Waste | Found Damper Plating 29032 | -4/Waste | EMP discharged 29053 | -4/Waste | Crushed by Compactor (0 parts destroyed, 1 dropped) 29054 | -4/Waste | Destroyed C-40 Crusher 29055 | -4/Waste | Spotted C-40 Crusher 29069 | -4/Waste | Crushed by Compactor (0 parts destroyed, 1 dropped) 29072 | -4/Waste | Crushed by Compactor (1 part destroyed) 29086 | -4/Waste | Crushed by Compactor (0 parts destroyed, 1 dropped) 29087 | -4/Waste | Released all parts (9) 29089 | -4/Waste | Crushed by Compactor (1 part destroyed) 29092 | -4/Waste | Crushed by Compactor (1 part destroyed) 29093 | -4/Waste | Spotted C-40 Crusher 29117 | -4/Waste | Discovered new exit (range 11) 29122 | -4/Waste | Entered Factory 29122 | -4/Factory | Identified Exp. System Shield 29123 | -4/Factory | Lost 3 parts (1n2u) 29144 | -4/Factory | Spotted B-86 Titan 29212 | -4/Factory | Core integrity fell below 50% 29234 | -4/Factory | Core integrity fell below 20% 29254 | -4/Factory | Destroyed 7 combat bots 29350 | -4/Factory | Build established: Mutant 29410 | -4/Factory | Destroyed by Y-64 Sentinel with KE Penetrator Last Messages --------------- 29363_ 1CS1 G%IHJMYDCRRVQW J1PZN:P 29363_ Slammed into R-10 Processor. 29365_ R-10 Processor knocked back. 29366_ Slammed into R-10 Processor. 29379_ Slammed into W-44 Eye. 29380_ W-44 Eye sends out distress signal. 29384_ Kicked K-01 Serf out of the way. 29385_ Kicked G-67 Veteran out of the way. 29390_ RG=8IMV7T4X2V/TDZ5SZDZYEVGRHH3LYV 29390_ Triggered Tesla Bomb Trap. 29390_ A bubble of electromagnetic force engulfs the area. 29390_ Triggered Tesla Bomb Trap. 29390_ A bubble of electromagnetic force engulfs the area. 29393_ W-44 Eye sends out distress signal. 29395_ U-05 Engineer works on Assembly Bed. 29402_ Slug penetrates Wall. 29408_ System corrupted: Energy discharge (-36). 29408_ U-05 Engineer lays Concrete. 29410_ Slug penetrates Wall. 29410_ Penetrated by Slug. Map ----- +----------------------------------------------------+ | ?????????????????????????????????????????????????? | | ?????????????????????????????????????????????????? | | ?????????????????????????????????????????????????? | | ?????????????????????????????????????????????????? | | ?????????????????????????????????????????????????? | | ?????????????????????????????????????????????????? | | ?????????????????????????????????????????????????? | | ?????????????????????????????????????????????????? | | ?????????????????????????????????????????????????? | | ??????????????????????????????##########?????????? | | ??????????????????????? ??# ! #?????????? | | ?????????????????????? k ?# #?????????? | | ?????????????????????? w ?# #?????????? | | ??????????????????????# #?# ! #?????????? | | ??????????????????????# #?# = #?????????? | | ??????????????????????# #?# #?????????? | | ??????????????????????# #?# #?????????? | | ??????????????????????# #?# #?????????? | | ??????????????????????# Y #?# #?????????? | | ?????????????##+####### #?# = #?????????? | | ?????????????? ?# #?# #?????????? | | ?????????????? ?# #?# #?????????? | | ??????????????? A# #?# = #?????????? | | ??????????????? ? g #?# #?????????? | | ???????????????? ???# #?# #?????????? | | ???????????????? ???# @ #?# " #?????????? | | ????????????????#+#??## ### #?????????? | | ????????????????# #??# ## #?????????? | | ???? "" ######## ####u u! ##"########?????????? | | ?? T u g #???????????? | | ##### ####### u #???????????? | | ?????????????# #?????# h #???????????? | | ?????????????# #?????# ##### #???????????? | | ?????????????# #?????# #???? #???????????? | | ?????????????# #?????####+####????? #???????????? | | ?????????????# #??????? ??????? #???????????? | | ?????????????# #?????""" """ ?????? #???????????? | | ?????????????# #???" """ """ ???? #???????????? | | ?????????????# #??"" """ """ #????#???????????? | | ?????????????# #?? ! #????????????????? | | ?????????????# #???? """ """ #????????????????? | | ?????????????# #???? """ """ #????????????????? | | ?##########??# #?????""" ????? #????????????????? | | ?? #??# #?????? ????????????????????????? | | ??"""" #??# #???????##????????????????????????? | | ?#"""" #??# #??# ??????????????????????? | | ?#"""" #### #??#"S """??????????????????????? | | ?#"""" + #??#""" """??????????????????????? | | ?#"""" #### #??# "" """??????????????????????? | | ?#"""" #??# #??# ??????????????????????? | +----------------------------------------------------+ Best States ------------- Heat Dissipation 71 Coolant Potential 80 Energy Generation 23 Energy Capacity 315 Matter Stores 300 Matter Capacity 300 Sight Range 22 Robot Scan Range 16 Terrain Scan Density 10 Jamming Range 12 Power Amplification 20 Armor Coverage 1600 Resistance: EM 90 Weapon Cycling 25 Evasion (%) 70 Energy Filtering 50 Offensive Hacking 10 Defensive Hacking 16 Relay Coupler Types 5 Relay Coupler Value 142 Item Schematics ----------------- Imp. Light Armor Plating | -9/Recycling | Hacked Remote Datajack | -4/Factory | Hacked Robot Schematics ------------------ None Fabricated ------------ Nothing Repaired ---------- Aluminum Leg | 38% | -9/Materials Aluminum Leg | 14% | -9/Materials Hvy. Ion Engine | 5% | -9/Materials | Broken Hvy. Assault Rifle | 43% | -9/Storage Remote Datajack | 5% | -6/Factory Studied --------- Aluminum Leg | -9/Materials | Hacked Hvy. Assault Rifle | -9/Materials | Hacked Rocket Launcher | -9/Materials | Hacked Autogun | -7/Factory | Hacked Arm. Leg | -6/Factory | Hacked KE Penetrator | -5/Factory | Hacked Alien Tech Used ----------------- None Achievements -------------- Be The Sidekick Botjacking Challenges ------------ None Game ------ Seed ActiveSchematicFragment Manual? 0 Play Time 04:20:50 Cumulative 431.2 hours Start 2025.11.17 @ 19:41:07 End 2025.11.18 @ 22:06:44 Sessions 5 Manual Loads 0 Difficulty Rogue Special Mode None Game No. 161 Rogue 140 Adventurer 21 Explorer 0 Win Type - Total 22 Types 13/1/5/1/0/0/0/1/0/1 Lore% 60 Gallery% 73 Achievement% 57 Wizard Run 0 Options --------- Layout 1 ASCII 0 Keyboard 0 Movement Mouse Keybinds 0 Fullscreen 2 Font 32/SmallcapsGlow Map View 77x35 Zoom Use 0% Tactical HUD 1 Map Filters NONE Filters NONE Steam 1 RUN: fafaff0c-588f-4787-9dbf-2f743373109c